bitfinex-derivatives/quotes_BTCF0:USTF0_20240824
["timestamp","ask_amount","ask_price","bid_price","bid_amount"]
[1724499076316,0.169943,64121.0,64120.0,0.47616892]
[1724499078714,0.169943,64121.0,64120.0,0.11536892]
[1724499078915,0.169943,64121.0,64120.0,0.47716892]
[1724499079116,0.168943,64121.0,64120.0,0.47716892]
[1724499079316,0.169943,64121.0,64120.0,0.47716892]
[1724499080813,0.169943,64121.0,64120.0,0.39922573]
[1724499081312,0.169943,64121.0,64120.0,0.37485583]
[1724499081511,0.169943,64121.0,64120.0,0.39922582]
[1724499081711,0.169943,64121.0,64120.0,0.0851566]
[1724499082014,0.169943,64121.0,64120.0,0.4459566]
[1724499083110,0.247886,64121.0,64120.0,0.4459566]
[1724499083308,0.247886,64121.0,64120.0,0.44595926]
[1724499083515,0.246886,64121.0,64120.0,0.38621145]
[1724499083710,0.246886,64121.0,64120.0,0.36184]
[1724499083911,0.245886,64121.0,64120.0,0.36184]
[1724499084118,0.246886,64121.0,64120.0,0.36184]
[1724499087216,0.246886,64121.0,64120.0,0.00104]
[1724499088317,0.168943,64121.0,64120.0,0.00104]
[1724499090821,0.078943,64121.0,64120.0,0.00104]
[1724499091327,0.168943,64121.0,64120.0,0.00104]
[1724499097726,0.078943,64121.0,64120.0,0.00104]
[1724499098025,0.078943,64121.0,64120.0,0.02541081]
[1724499098228,0.4690553,64145.0,64120.0,1.21602385]
[1724499098421,0.077916,64143.0,64142.0,0.04673218]
[1724499098620,0.077916,64143.0,64135.0,0.3608]
[1724499098621,0.90585864,64143.0,64135.0,0.04673218]
[1724499098925,0.167925,64136.0,64131.0,0.3608]
[1724499099125,0.09,64132.0,64131.0,0.3608]
[1724499099722,0.09004,64132.0,64131.0,0.3608]
[1724499100434,0.09304,64132.0,64131.0,0.3608]
[1724499101523,0.09704,64132.0,64131.0,0.3608]
[1724499102418,0.00704,64132.0,64131.0,0.3608]
[1724499102621,0.00704,64132.0,64131.0,0.40753218]
[1724499104332,0.0002338,64138.0,64131.0,0.40753218]
[1724499104525,0.0773865,64160.0,64148.0,0.07791]
[1724499104720,0.3608,64171.0,64167.0,0.077886]
[1724499105226,0.3608,64171.0,64166.0,0.3608]
[1724499105431,0.3608,64171.0,64166.0,0.438688]
[1724499105629,0.3608,64171.0,64170.0,4e-05]
[1724499106427,0.3748,64171.0,64170.0,4e-05]
[1724499107333,0.3748,64171.0,64170.0,0.00104]
[1724499107334,0.3888,64171.0,64170.0,0.00104]
[1724499107941,0.028,64171.0,64170.0,0.00104]
[1724499108122,0.028,64171.0,64170.0,0.00204]
[1724499108823,0.10540021,64171.0,64170.0,0.00204]
[1724499109431,0.028,64171.0,64170.0,0.00204]
[1724499111841,0.105882,64171.0,64170.0,0.00204]
[1724499114136,0.028,64171.0,64170.0,0.077883]
[1724499114339,0.028,64171.0,64167.0,0.125387]
[1724499114735,0.028,64171.0,64168.0,0.077886]
[1724499115634,0.014,64171.0,64169.0,0.077884]
[1724499116234,0.077881,64173.0,64169.0,0.077884]
[1724499116436,2.3208,64174.0,64171.0,0.077882]
[1724499116640,2.32,64174.0,64168.0,0.22]
[1724499116937,0.001,64171.0,64168.0,0.22]
[1724499117240,0.001,64171.0,64170.0,0.077883]
[1724499117428,0.0002338,64175.0,64174.0,0.077878]
[1724499117741,0.0002338,64175.0,64174.0,0.658678]
[1724499118437,0.07740021,64191.0,64189.0,0.07786]
[1724499118646,0.07680982,64194.0,64193.0,0.077855]
[1724499118836,0.07680982,64196.0,64193.0,0.077855]
[1724499119033,0.07680982,64197.0,64190.0,0.267]
[1724499119346,2.397848,64199.0,64195.0,0.077853]
[1724499119347,2.32084,64199.0,64195.0,0.077853]
[1724499119533,2.32,64199.0,64195.0,0.077853]
[1724499120336,2.32,64199.0,64195.0,0.438653]
[1724499120538,2.334,64199.0,64195.0,0.3618]
[1724499121847,0.077851,64197.0,64195.0,0.3618]
[1724499123945,0.077851,64197.0,64195.0,0.3608]
[1724499124140,0.091851,64197.0,64195.0,0.3618]
[1724499124340,0.105851,64197.0,64195.0,0.3628]
[1724499124540,0.105851,64197.0,64195.0,0.3618]
[1724499124737,0.02,64197.0,64196.0,0.077852]
[1724499124941,0.006,64197.0,64196.0,0.077852]
[1724499125147,0.012,64197.0,64196.0,0.077852]
[1724499125951,0.013,64197.0,64196.0,0.078852]
[1724499126139,0.09085,64197.0,64196.0,0.001]
[1724499126850,2.41085,64197.0,64196.0,0.001]
[1724499127245,2.40485,64197.0,64196.0,0.001]
[1724499127443,2.41185,64197.0,64196.0,0.002]
[1724499127645,2.4800447,64197.0,64196.0,0.002]
[1724499128152,2.44192168,64197.0,64196.0,0.002]
[1724499128358,2.54938494,64197.0,64196.0,0.002]
[1724499128544,2.54938494,64197.0,64189.0,0.3608]
[1724499128545,2.84084797,64197.0,64189.0,0.3608]
[1724499128741,0.077859,64190.0,64189.0,0.3608]
[1724499128949,0.10793068,64190.0,64189.0,0.3608]
[1724499129352,0.10797068,64190.0,64189.0,0.3608]
[1724499130054,0.10797068,64190.0,64189.0,0.3618]
[1724499130545,0.18582968,64190.0,64189.0,0.3618]
[1724499130743,0.155758,64190.0,64189.0,0.3618]
[1724499131547,0.166758,64190.0,64189.0,0.3608]
[1724499131750,0.077861,64188.0,64187.0,0.0002338]
[1724499132543,0.077901,64188.0,64187.0,0.0002338]
[1724499134363,0.087901,64188.0,64187.0,0.0002338]
[1724499134657,0.097901,64188.0,64187.0,0.0012338]
[1724499136557,0.087901,64188.0,64187.0,0.0002338]
[1724499137964,0.097901,64188.0,64187.0,0.0012338]
[1724499139866,0.087901,64188.0,64187.0,0.0002338]
[1724499140068,0.087901,64188.0,64187.0,0.0780968]
[1724499140459,0.078901,64188.0,64187.0,0.0780968]
[1724499141065,0.00104,64188.0,64187.0,0.0780968]
[1724499141263,0.00204,64188.0,64187.0,0.0780968]
[1724499141768,0.078903,64188.0,64187.0,0.0780968]
[1724499141968,0.080903,64188.0,64187.0,0.0780968]
[1724499142265,0.080903,64188.0,64187.0,0.0002338]
[1724499143969,0.082903,64188.0,64187.0,0.0002338]
[1724499144165,0.081903,64188.0,64187.0,0.0002338]
[1724499144467,0.082903,64188.0,64187.0,0.0012338]
[1724499144770,0.16575487,64188.0,64187.0,0.0022338]
[1724499145068,0.16075487,64188.0,64187.0,0.0012338]
[1724499145370,0.16075487,64188.0,64187.0,0.0022338]
[1724499145371,0.089903,64188.0,64187.0,0.0022338]
[1724499146668,0.083903,64188.0,64187.0,0.0012738]
[1724499146858,0.083903,64188.0,64184.0,0.50229595]
[1724499146859,0.077864,64187.0,64185.0,0.06218795]
[1724499147060,0.077864,64187.0,64177.0,0.06218795]
[1724499147061,0.077875,64178.0,64177.0,0.06218795]
[1724499147261,0.077876,64177.0,64175.0,0.04665847]
[1724499147472,0.155762,64173.0,64172.0,0.04665847]
[1724499147768,0.155766,64172.0,64171.0,0.40745847]
[1724499148472,0.155806,64172.0,64171.0,0.3608]
[1724499149268,0.156806,64172.0,64171.0,0.3668]
[1724499149773,0.157806,64172.0,64171.0,0.3748]
[1724499150764,0.518606,64172.0,64171.0,0.014]
[1724499167092,0.518606,64172.0,64165.0,0.0002338]
[1724499167093,0.07789,64166.0,64165.0,0.0002338]
[1724499167288,0.43869,64166.0,64165.0,0.0002338]
[1724499167599,0.51658,64166.0,64165.0,0.0002338]
[1724499167789,0.51662,64166.0,64165.0,0.0002338]
[1724499168593,0.51762,64166.0,64165.0,0.0012338]
[1724499169498,0.51862,64166.0,64165.0,0.0012338]
[1724499170797,0.15782,64166.0,64165.0,0.0012338]
[1724499171198,0.51862,64166.0,64165.0,0.0012338]
[1724499174103,0.59604537,64166.0,64165.0,0.0012338]
[1724499174399,0.51862,64166.0,64165.0,0.0012338]
[1724499176299,0.15782,64166.0,64165.0,0.0012338]
[1724499176495,0.51862,64166.0,64165.0,0.0012338]
[1724499177298,0.15782,64166.0,64165.0,0.0012338]
[1724499177598,0.59651,64166.0,64165.0,0.0012338]
[1724499178995,1.46407,64166.0,64165.0,0.0012338]
[1724499180500,0.077903,64155.0,64154.0,0.0469]
[1724499181401,0.155846,64155.0,64154.0,0.0469]
[1724499181897,0.155846,64155.0,64154.0,0.0479]
[1724499181898,0.156846,64155.0,64154.0,0.0479]
[1724499182098,0.157846,64155.0,64154.0,0.0479]
[1724499182796,2.477846,64155.0,64154.0,0.0479]
[1724499183198,2.477846,64155.0,64154.0,0.001]
[1724499184804,0.077905,64153.0,64152.0,0.0479]
[1724499185694,0.15585,64153.0,64152.0,0.0479]
[1724499187501,0.155818,64150.0,64149.0,0.0488]
[1724499188104,0.15582,64149.0,64148.0,0.3610338]
[1724499188811,0.15586,64149.0,64148.0,0.3610338]
[1724499189410,0.16686,64149.0,64148.0,0.3610338]
[1724499190002,0.17786,64149.0,64148.0,0.3610338]
[1724499192313,0.09995,64149.0,64148.0,0.3610338]
[1724499196112,0.09995,64149.0,64148.0,0.0002338]
[1724499196409,0.09995,64149.0,64148.0,0.3610338]
[1724499198404,0.09995,64149.0,64148.0,0.4510338]
[1724499199309,0.09995,64149.0,64148.0,0.5289458]
[1724499199713,0.09995,64149.0,64148.0,0.1681458]
[1724499199913,0.09995,64149.0,64148.0,0.5289458]
[1724499200513,0.09995,64149.0,64148.0,0.1681458]
[1724499200715,0.09995,64149.0,64148.0,0.5289458]
[1724499200910,0.09995,64149.0,64148.0,0.1681458]
[1724499201113,0.09995,64149.0,64148.0,0.5289458]
[1724499203707,0.09995,64149.0,64148.0,0.4389458]
[1724499206016,0.09995,64149.0,64148.0,0.48560427]
[1724499206615,0.09995,64149.0,64148.0,0.48564913]
[1724499207210,0.09995,64149.0,64148.0,0.4389458]
[1724499210316,0.09995,64149.0,64148.0,0.0781458]
[1724499210516,0.09995,64149.0,64148.0,0.4389458]
[1724499211417,0.09995,64149.0,64148.0,0.48567826]
[1724499212015,0.09995,64149.0,64148.0,0.12487826]
[1724499212214,0.09995,64149.0,64148.0,0.48567826]
[1724499213316,0.09995,64149.0,64148.0,0.40776626]
[1724499214917,0.09995,64149.0,64148.0,0.04696626]
[1724499215113,0.09995,64149.0,64148.0,0.40776626]
[1724499216025,0.09995,64149.0,64148.0,0.04696626]
[1724499216222,0.09995,64149.0,64148.0,0.40776626]
[1724499217628,0.09995,64149.0,64148.0,0.04696626]
[1724499217927,0.09995,64149.0,64148.0,0.40776626]
[1724499220832,0.09995,64149.0,64148.0,0.04696626]
[1724499221027,0.09995,64149.0,64148.0,0.3610338]
[1724499221620,0.09995,64149.0,64148.0,0.0002338]
[1724499221827,0.09995,64149.0,64148.0,0.3610338]
[1724499222021,0.09995,64149.0,64148.0,0.0002338]
[1724499222326,0.09995,64149.0,64148.0,0.38539356]
[1724499225828,0.09995,64149.0,64148.0,0.3853937]
[1724499226932,0.09995,64149.0,64148.0,0.0245937]
[1724499227139,0.09995,64149.0,64148.0,0.4753937]
[1724499229239,0.09995,64149.0,64148.0,0.4510338]
[1724499229437,0.09995,64149.0,64148.0,0.47539379]
[1724499229641,0.09995,64149.0,64148.0,0.11459379]
[1724499229940,0.09995,64149.0,64148.0,0.47539379]
[1724499232435,0.09995,64149.0,64148.0,0.47539368]
[1724499233233,0.09995,64149.0,64148.0,0.52215701]
[1724499233947,0.09995,64149.0,64148.0,0.16135701]
[1724499234437,0.09995,64149.0,64148.0,0.47539368]
[1724499234840,0.09995,64149.0,64148.0,0.11459368]
[1724499235147,0.09995,64149.0,64148.0,0.52215615]
[1724499235741,0.09995,64149.0,64148.0,0.47539368]
[1724499236545,0.09995,64149.0,64148.0,0.11459368]
[1724499236744,0.09995,64149.0,64148.0,0.47539368]
[1724499240437,0.09995,64149.0,64148.0,0.11459368]
[1724499240638,0.09995,64149.0,64148.0,0.47539368]
[1724499241744,0.09995,64149.0,64148.0,0.4510338]
[1724499242043,0.09995,64149.0,64148.0,0.47539366]
[1724499242638,0.09995,64149.0,64148.0,0.38539366]
[1724499243541,0.09995,64149.0,64148.0,0.02459366]
[1724499243949,0.09995,64149.0,64148.0,0.38539366]
[1724499245637,0.09995,64149.0,64148.0,0.43215533]
[1724499245843,0.09995,64149.0,64148.0,0.38539366]
[1724499246734,0.09995,64149.0,64148.0,0.43215527]
[1724499247634,0.09995,64149.0,64148.0,0.40779541]
[1724499248040,0.09995,64149.0,64148.0,0.43215534]
[1724499248248,0.09995,64149.0,64148.0,0.38539373]
[1724499253247,0.09995,64149.0,64148.0,0.43215711]
[1724499253848,0.09995,64149.0,64148.0,0.07135711]
[1724499254242,0.09995,64149.0,64148.0,0.02459373]
[1724499254648,0.09995,64149.0,64148.0,0.0002338]
[1724499254845,0.09995,64149.0,64148.0,0.02459485]
[1724499255247,0.09995,64149.0,64148.0,0.11459485]
[1724499257753,0.09995,64149.0,64148.0,0.0902338]
[1724499257948,0.09995,64149.0,64148.0,0.11459472]
[1724499259046,0.09995,64149.0,64148.0,0.1613581]
[1724499259247,0.09995,64149.0,64148.0,0.11459472]
[1724499260947,0.09995,64149.0,64148.0,0.0902338]
[1724499261250,0.09995,64149.0,64148.0,0.1145947]
[1724499262651,0.09995,64149.0,64148.0,0.1925057]
[1724499263052,0.09995,64149.0,64148.0,0.1681448]
[1724499263261,0.09995,64149.0,64148.0,0.19250565]
[1724499264550,0.09995,64149.0,64148.0,0.1681448]
[1724499264759,0.09995,64149.0,64148.0,0.19250567]
[1724499267854,0.09995,64149.0,64148.0,0.19250565]
[1724499268452,0.09995,64149.0,64148.0,0.23926903]
[1724499268754,0.09995,64149.0,64148.0,0.19250565]
[1724499270059,0.18995,64149.0,64148.0,0.02459465]
[1724499270253,0.18995,64149.0,64148.0,0.07135098]
[1724499270453,0.18995,64149.0,64148.0,0.02459465]
[1724499270863,0.18995,64149.0,64148.0,0.0469898]
[1724499271254,0.18995,64149.0,64148.0,0.0002338]
[1724499273761,0.18995,64149.0,64148.0,0.04699121]
[1724499273951,0.18995,64149.0,64148.0,0.0002338]
[1724499275760,0.18995,64149.0,64148.0,0.02459478]
[1724499278056,0.18995,64149.0,64148.0,0.0002338]
[1724499278261,0.18995,64149.0,64148.0,0.02459481]
[1724499280571,1.21345,64149.0,64148.0,0.02459481]
[1724499280864,1.21345,64149.0,64137.0,0.3608]
[1724499280865,0.077916,64144.0,64139.0,0.04675741]
[1724499281066,0.5440029,64140.0,64136.0,0.04690473]
[1724499281266,0.167924,64137.0,64136.0,0.01356076]
[1724499281462,0.167924,64137.0,64136.0,0.09148576]
[1724499281861,0.077964,64137.0,64136.0,0.09148576]
[1724499287878,0.077964,64137.0,64136.0,0.01356076]
[1724499288071,0.167964,64137.0,64136.0,0.01356076]
[1724499288269,0.245888,64137.0,64136.0,0.00014732]
[1724499294472,0.155888,64137.0,64136.0,0.00014732]
[1724499294668,0.077964,64137.0,64136.0,0.09014732]
[1724499295275,0.077964,64137.0,64136.0,0.00014732]
[1724499295793,0.167964,64137.0,64136.0,0.00014732]
[1724499300683,0.077964,64137.0,64136.0,0.00014732]
[1724499308389,0.167964,64137.0,64136.0,0.00014732]
[1724499310181,0.167964,64137.0,64136.0,0.04690473]
[1724499310381,0.167964,64137.0,64136.0,0.00014732]
[1724499311382,0.167964,64137.0,64136.0,0.04690473]
[1724499312289,0.167964,64137.0,64136.0,0.00014732]
[1724499312593,0.167964,64137.0,64136.0,0.04691184]
[1724499313379,0.167964,64137.0,64136.0,0.00014732]
[1724499314592,0.167964,64137.0,64136.0,0.04691163]
[1724499316989,0.0002338,64143.0,64136.0,0.04691163]
[1724499316990,0.19300034,64162.0,64136.0,0.00014732]
[1724499317289,6.4e-07,64184.0,64161.0,0.7216]
[1724499317491,0.3608,64204.0,64183.0,0.3608]
[1724499317696,0.077851,64197.0,64191.0,0.3608]
[1724499317887,0.0476,64196.0,64191.0,0.3608]
[1724499318087,3.2076,64196.0,64191.0,0.3608]
[1724499318291,3.76110366,64196.0,64191.0,0.3608]
[1724499318498,3.29378366,64196.0,64191.0,0.3608]
[1724499318891,0.09,64192.0,64191.0,0.3608]
[1724499319099,0.55736,64192.0,64191.0,0.3608]
[1724499319393,0.64354366,64192.0,64191.0,0.3608]
[1724499320197,0.65754366,64192.0,64191.0,0.3608]
[1724499320396,0.74346892,64192.0,64191.0,0.3608]
[1724499320695,0.27610892,64192.0,64191.0,0.3608]
[1724499321893,0.29010892,64192.0,64191.0,0.3608]
[1724499323101,0.05583693,64194.0,64192.0,0.545216]
[1724499323298,0.16950434,64200.0,64197.0,0.3608]
[1724499323492,0.08897734,64200.0,64199.0,0.09]
[1724499323800,0.09,64217.0,64199.0,0.32494135]
[1724499324099,0.08618366,64217.0,64211.0,0.3608]
[1724499324289,0.09,64212.0,64211.0,0.3608]
[1724499324489,0.17618366,64212.0,64211.0,0.3608]
[1724499325296,0.17618366,64212.0,64204.0,0.3608]
[1724499325597,0.09,64205.0,64204.0,0.3608]
[1724499325999,0.17622366,64205.0,64204.0,0.3608]
[1724499326390,0.08622366,64205.0,64204.0,0.3608]
[1724499326592,0.08622366,64205.0,64204.0,0.3618]
[1724499326902,0.09622366,64205.0,64204.0,0.3628]
[1724499327199,3.25622366,64205.0,64204.0,0.3628]
[1724499327406,3.26822366,64205.0,64204.0,0.3628]
[1724499328292,3.34606466,64205.0,64204.0,0.3628]
[1724499328699,3.33606466,64205.0,64204.0,0.3618]
[1724499328994,3.33506466,64205.0,64204.0,0.3618]
[1724499329299,3.34806466,64205.0,64204.0,0.3628]
[1724499331295,0.077843,64203.0,64198.0,0.00023362]
[1724499331702,0.16402666,64203.0,64198.0,0.00023362]
[1724499331999,4e-05,64199.0,64198.0,0.00023362]
[1724499332500,4e-05,64199.0,64198.0,0.00223362]
[1724499333294,4e-05,64199.0,64198.0,0.00123362]
[1724499333591,0.00804,64199.0,64198.0,0.00223362]
[1724499334609,0.00804,64199.0,64198.0,0.08008262]
[1724499335095,0.01604,64199.0,64198.0,0.08008262]
[1724499335295,0.01404,64199.0,64198.0,0.08008262]
[1724499335797,0.01204,64199.0,64198.0,0.08008262]
[1724499338505,0.09822366,64199.0,64198.0,0.08008262]
[1724499338710,0.01204,64199.0,64198.0,0.08008262]
[1724499338905,1.26339166,64199.0,64190.0,0.3608]
[1724499339208,0.077862,64187.0,64186.0,0.3608]
[1724499339411,3.237862,64187.0,64186.0,0.3608]
[1724499339604,3.32404566,64187.0,64186.0,0.3608]
[1724499340103,3.32408566,64187.0,64186.0,0.3608]
[1724499341709,3.32508566,64187.0,64186.0,0.3678]
[1724499342109,3.32608566,64187.0,64186.0,0.3748]
[1724499342309,0.00204,64187.0,64186.0,0.5948]
[1724499342512,0.0008,64227.0,64187.0,0.46736]
[1724499342513,0.1418,64225.0,64187.0,0.46736]
[1724499342709,0.22798366,64225.0,64216.0,0.3608]
[1724499342902,0.077825,64218.0,64216.0,0.3608]
[1724499343309,0.16400866,64218.0,64216.0,0.3608]
[1724499344911,0.16400866,64218.0,64216.0,0.3618]
[1724499345310,0.077825,64217.0,64216.0,0.3628]
[1724499345809,0.16400866,64217.0,64216.0,0.3628]
[1724499346007,3.32400866,64217.0,64216.0,0.3628]
[1724499346413,3.33700866,64217.0,64216.0,0.3628]
[1724499346817,3.34000866,64217.0,64216.0,0.3628]
[1724499347213,3.176,64217.0,64216.0,0.3628]
[1724499347413,3.21411145,64217.0,64216.0,0.3628]
[1724499348120,3.176,64217.0,64216.0,0.3628]
[1724499348509,3.34000966,64217.0,64216.0,0.3628]
[1724499348713,3.56000966,64217.0,64216.0,0.002]
[1724499352217,3.34000966,64217.0,64216.0,0.002]
[1724499352814,4.34934366,64217.0,64211.0,0.00023362]
[1724499353020,0.077832,64212.0,64211.0,0.00023362]
[1724499353508,0.24188766,64212.0,64211.0,0.00023362]
[1724499354523,0.24188766,64212.0,64211.0,0.04686981]
[1724499355115,0.24188766,64212.0,64211.0,0.00123362]
[1724499355915,0.24988766,64212.0,64211.0,0.00223362]
[1724499356320,0.24988766,64212.0,64211.0,0.00123362]
[1724499356626,0.25588766,64212.0,64211.0,0.00223362]
[1724499357118,0.25788766,64212.0,64211.0,0.00223362]
[1724499358119,0.25188766,64212.0,64211.0,0.00123362]
[1724499358315,0.25688766,64212.0,64211.0,0.00223362]
[1724499358722,0.25688766,64212.0,64211.0,0.00123362]
[1724499358723,0.25188766,64212.0,64211.0,0.00123362]
[1724499358924,0.25688766,64212.0,64211.0,0.00223362]
[1724499359626,0.25788766,64212.0,64211.0,0.00223362]
[1724499360520,0.60768766,64212.0,64211.0,0.00123362]
[1724499360825,0.62168766,64212.0,64211.0,0.00223362]
[1724499361420,0.62168766,64212.0,64211.0,0.00123362]
[1724499361617,0.62168766,64212.0,64211.0,0.00223362]
[1724499361818,0.62168766,64212.0,64201.0,0.04663619]
[1724499361819,0.077844,64202.0,64201.0,0.04663619]
[1724499362021,0.155688,64202.0,64201.0,0.04663619]
[1724499362219,0.16402766,64202.0,64197.0,0.04663619]
[1724499362418,0.16402766,64202.0,64195.0,0.04663619]
[1724499362419,0.077851,64196.0,64195.0,0.04663619]
[1724499362913,0.077853,64195.0,64192.0,0.42298158]
[1724499363118,0.077853,64195.0,64192.0,0.50083658]
[1724499363421,0.077853,64195.0,64194.0,0.04655445]
[1724499363621,4e-05,64193.0,64192.0,0.440655]
[1724499363823,0.077853,64195.0,64192.0,0.50083658]
[1724499364328,0.077853,64195.0,64194.0,0.04655229]
[1724499364624,0.077853,64195.0,64194.0,4e-05]
[1724499366318,0.079853,64195.0,64194.0,4e-05]
[1724499366521,0.081853,64195.0,64194.0,4e-05]
[1724499366821,0.079853,64195.0,64194.0,4e-05]
[1724499367026,0.080853,64195.0,64194.0,4e-05]
[1724499367225,0.078853,64195.0,64194.0,0.00104]
[1724499367621,0.156706,64195.0,64194.0,0.00104]
[1724499368026,0.24288966,64195.0,64194.0,0.00104]
[1724499368227,0.24488966,64195.0,64194.0,4e-05]
[1724499368525,0.077858,64190.0,64189.0,0.00023362]
[1724499369426,0.16404166,64190.0,64189.0,0.00023362]
[1724499370029,0.16404166,64190.0,64189.0,0.00623362]
[1724499371821,0.16408166,64190.0,64189.0,0.00623362]
[1724499372228,0.17008166,64190.0,64189.0,0.00423362]
[1724499372527,0.17008166,64190.0,64189.0,0.00123362]
[1724499372723,0.17608166,64190.0,64189.0,0.00223362]
[1724499376434,0.25393966,64190.0,64189.0,0.00223362]
[1724499378437,3.41393966,64190.0,64189.0,0.00223362]
[1724499399748,0.17608166,64190.0,64189.0,0.36303362]
[1724499400049,0.01204,64190.0,64189.0,0.44089262]
[1724499403548,0.01204,64190.0,64189.0,1.30825262]
[1724499403751,0.0381246,64198.0,64197.0,0.077849]
[1724499404560,0.1159726,64198.0,64197.0,0.077889]
[1724499405253,0.1319726,64198.0,64197.0,0.079889]
[1724499405651,0.12597078,64198.0,64197.0,0.079889]
[1724499405960,0.11597078,64198.0,64197.0,0.080889]
[1724499406142,0.21751517,64198.0,64197.0,0.080889]
[1724499406348,0.25563795,64198.0,64197.0,0.080889]
[1724499406542,0.11597078,64198.0,64197.0,0.080889]
[1724499406742,0.077848,64198.0,64197.0,0.080889]
[1724499407853,0.077848,64198.0,64197.0,0.078889]
[1724499408061,0.077848,64198.0,64197.0,0.080889]
[1724499408256,0.077848,64198.0,64197.0,0.081889]
[1724499408750,0.0008,64201.0,64200.0,0.077846]
[1724499408952,0.07807762,64202.0,64200.0,0.077846]
[1724499409149,0.00023362,64202.0,64197.0,0.00404]
[1724499409350,0.077848,64199.0,64197.0,0.09517326]
[1724499409554,0.077848,64199.0,64197.0,0.081889]
[1724499409752,0.077845,64201.0,64200.0,0.077846]
[1724499409948,0.155692,64201.0,64200.0,0.077806]
[1724499410651,0.077845,64201.0,64200.0,0.077846]
[1724499412057,0.079845,64201.0,64200.0,0.077846]
[1724499412643,0.077845,64201.0,64200.0,0.077846]
[1724499412948,0.079845,64201.0,64200.0,0.077846]
[1724499413250,0.079845,64201.0,64200.0,4e-05]
[1724499414255,0.077845,64201.0,64200.0,0.077886]
[1724499414451,0.079845,64201.0,64200.0,0.077886]
[1724499415463,0.077845,64201.0,64200.0,0.077886]
[1724499415651,0.079845,64201.0,64200.0,0.077886]
[1724499416552,0.079845,64201.0,64200.0,0.167886]
[1724499420950,0.079845,64201.0,64200.0,0.528686]
[1724499421660,0.41172266,64201.0,64200.0,0.36084]
[1724499421960,0.33387566,64201.0,64200.0,0.36084]
[1724499422359,3.49387566,64201.0,64200.0,0.36084]
[1724499424662,3.40387566,64201.0,64200.0,0.36084]
[1724499425755,3.40387566,64201.0,64200.0,4e-05]
[1724499426354,3.48172066,64201.0,64200.0,4e-05]
[1724499426555,0.1557,64197.0,64196.0,0.01312049]
[1724499426763,0.1557,64197.0,64189.0,0.00023362]
[1724499426764,0.077858,64190.0,64189.0,0.00023362]
[1724499427261,0.16404166,64190.0,64189.0,0.00023362]
[1724499427459,0.16408166,64190.0,64189.0,0.00023362]
[1724499427856,0.16408166,64190.0,64189.0,0.0220401]
[1724499428061,0.16408166,64190.0,64189.0,0.00923362]
[1724499428460,0.16408166,64190.0,64189.0,0.01823362]
[1724499428665,0.16508166,64190.0,64189.0,0.01823362]
[1724499428966,0.16508166,64190.0,64189.0,0.00923362]
[1724499430266,0.16908166,64190.0,64189.0,0.00023362]
[1724499432667,0.16908166,64190.0,64189.0,0.01339128]
[1724499432960,0.16908166,64190.0,64189.0,0.00023362]
[1724499434755,0.20720871,64190.0,64189.0,0.00023362]
[1724499437265,0.20720871,64190.0,64189.0,0.0136349]
[1724499437765,0.16908166,64190.0,64189.0,0.0136349]
[1724499438863,0.24693966,64190.0,64189.0,0.0136349]
[1724499440570,0.24693966,64190.0,64189.0,0.00023362]
[1724499443063,0.54479766,64190.0,64189.0,0.00023362]
[1724499443268,0.15573,64184.0,64183.0,0.0001091]
[1724499443668,3.40191366,64184.0,64183.0,0.0001091]
[1724499443977,3.40195366,64184.0,64183.0,0.0001091]
[1724499444367,0.155732,64183.0,64182.0,0.3608]
[1724499444568,0.253232,64183.0,64182.0,0.3608]
[1724499444868,0.33941566,64183.0,64182.0,0.3608]
[1724499445176,0.33945566,64183.0,64182.0,0.3608]
[1724499445364,0.33956476,64183.0,64182.0,0.3608]
[1724499445762,0.33956476,64183.0,64182.0,0.3638]
[1724499446173,0.33956476,64183.0,64182.0,0.3668]
[1724499446371,0.33956476,64183.0,64182.0,0.006]
[1724499453482,0.26169876,64183.0,64182.0,0.006]
[1724499455682,0.26169876,64183.0,64182.0,0.3668]
[1724499458384,0.21239876,64183.0,64182.0,0.3668]
[1724499459182,0.30239876,64183.0,64182.0,0.3668]
[1724499463693,0.30239876,64183.0,64182.0,0.006]
[1724499463892,0.30239876,64183.0,64182.0,0.3668]
[1724499464595,0.30239876,64183.0,64182.0,0.006]
[1724499464795,0.30239876,64183.0,64182.0,0.3668]
[1724499465996,0.30239876,64183.0,64182.0,0.006]
[1724499466193,0.30239876,64183.0,64182.0,0.3668]
[1724499466387,0.30239876,64183.0,64182.0,0.006]
[1724499466587,0.30239876,64183.0,64182.0,0.3668]
[1724499468993,0.30239876,64183.0,64182.0,0.006]
[1724499469197,0.30239876,64183.0,64182.0,0.3668]
[1724499471700,0.38026476,64183.0,64182.0,0.3668]
[1724499472297,3.54026476,64183.0,64182.0,0.3668]
[1724499476019,3.54026476,64183.0,64182.0,0.006]
[1724499476205,0.38026476,64183.0,64182.0,0.006]
[1724499478805,0.155744,64179.0,64178.0,0.01314325]
[1724499479010,0.155744,64179.0,64177.0,0.00023362]
[1724499479011,0.155746,64178.0,64177.0,0.00023362]
[1724499479514,3.40192966,64178.0,64177.0,0.00023362]
[1724499479718,3.40196966,64178.0,64177.0,0.00023362]
[1724499481710,3.40196966,64178.0,64177.0,0.00823362]
[1724499481916,3.40296966,64178.0,64177.0,0.01623362]
[1724499482317,3.40296966,64178.0,64177.0,0.02959193]
[1724499484310,3.49296966,64178.0,64177.0,0.02959193]
[1724499486532,3.60296966,64178.0,64177.0,0.02959193]
[1724499487127,0.44296966,64178.0,64177.0,0.01623362]
[1724499488113,0.36509666,64178.0,64177.0,0.01623362]
[1724499489924,0.27509666,64178.0,64177.0,0.04058353]
[1724499490130,0.36509666,64178.0,64177.0,0.04058353]
[1724499490537,0.36509666,64178.0,64177.0,0.01623362]
[1724499490825,0.36509666,64178.0,64177.0,0.04058296]
[1724499491428,0.36509666,64178.0,64177.0,0.01623362]
[1724499492227,0.188913,64178.0,64177.0,0.18410762]
[1724499492836,3.348913,64178.0,64177.0,0.18410762]
[1724499493332,3.348913,64178.0,64177.0,0.54490762]
[1724499493925,0.0001091,64183.0,64182.0,0.077868]
[1724499494129,0.077865,64185.0,64182.0,0.09]